fUST/lending_fUST_20250325
["ID","MTS","AMOUNT","RATE_DAILY","PERIOD"]
[356651607,1742916645446,-500.0,0.00012487,2]
[356651608,1742916645457,-500.0,0.00012487,2]
[356651609,1742916645467,-2969.95,0.00012487,2]
[356651610,1742916645477,-500.0,0.00012487,2]
[356651611,1742916645488,-500.0,0.00012487,2]
[356651612,1742916645498,-500.0,0.00012487,2]
[356651613,1742916645508,-622.04,0.00012487,2]
[356651614,1742916645518,-500.0,0.00012487,2]
[356651615,1742916645639,-590.01,0.00012487,2]
[356651616,1742916645650,-610.11,0.00012487,2]
[356651617,1742916645660,-640.41,0.00012487,2]
[356651618,1742916645670,-500.0,0.00012487,2]
[356651619,1742916645680,-500.0,0.00012487,2]
[356651620,1742916645689,-500.0,0.00012487,2]
[356651621,1742916645698,-1204.11,0.00012487,2]
[356651622,1742916645708,-500.0,0.00012487,2]
[356651623,1742916645718,-644.9,0.00012487,2]
[356651624,1742916645728,-1184.07,0.00012487,2]
[356651625,1742916645737,-500.0,0.00012487,2]
[356651626,1742916645747,-500.0,0.00012487,2]
[356651627,1742916645756,-1640.77,0.00012487,2]
[356651628,1742916645765,-500.0,0.00012487,2]
[356651629,1742916645775,-506.07112955,0.00012487,2]
[356651630,1742916645784,-1993.57,0.00012487,2]
[356651631,1742916645794,-502.32891565,0.00012487,2]
[356651632,1742916645804,-500.0,0.00012487,2]
[356651633,1742916645817,-500.0,0.00012487,2]
[356651634,1742916645827,-506.38459413,0.00012487,2]
[356651635,1742916645837,-1380.4,0.00012487,2]
[356651636,1742916645846,-500.0,0.00012487,2]
[356651637,1742916645857,-304.412424,0.00012487,2]
[356651638,1742916645866,-304.412424,0.00012487,2]
[356651639,1742916645876,-304.412424,0.00012487,2]
[356651640,1742916645887,-304.412424,0.00012487,2]
[356651641,1742916645897,-304.412424,0.00012487,2]
[356651642,1742916645906,-304.412424,0.00012487,2]
[356651643,1742916645916,-304.412424,0.00012487,2]
[356651644,1742916645925,-304.412424,0.00012487,2]
[356651645,1742916645935,-500.0,0.00012487,2]
[356651646,1742916645944,-304.412424,0.00012487,2]
[356651647,1742916645954,-304.412424,0.00012487,2]
[356651648,1742916645963,-304.412424,0.00012487,2]
[356651649,1742916645973,-304.412424,0.00012487,2]
[356651650,1742916645982,-304.412424,0.00012487,2]
[356651651,1742916645991,-304.412424,0.00012487,2]
[356651652,1742916646001,-304.412424,0.00012487,2]
[356651654,1742916646011,-304.412424,0.00012487,2]
[356651655,1742916646020,-500.0,0.00012487,2]
[356651656,1742916646029,-2304.96,0.00012487,2]
[356651657,1742916646038,-500.0,0.00012487,2]
[356651659,1742916646048,-408.02578226,0.00012487,2]
[356651661,1742916646057,-500.0,0.00012487,2]
[356651662,1742916646066,-4147.34,0.00012487,2]
[356651663,1742916646075,-190.295832,0.00012487,2]
[356651665,1742916646085,-500.0,0.00012487,2]
[356651667,1742916646094,-500.0,0.00012487,2]
[356651669,1742916646103,-9745.36,0.00012487,2]
[356651671,1742916646113,-151.0,0.00012487,2]
[356651673,1742916646122,-151.0,0.00012487,2]
[356651674,1742916646131,-151.0,0.00012487,2]
[356651675,1742916646140,-234.58465,0.00012487,2]
[356651676,1742916646149,-500.0,0.00012487,2]
[356651677,1742916646158,-151.0,0.00012487,2]
[356651678,1742916646167,-864.43,0.00012487,2]
[356651679,1742916646176,-500.0,0.00012487,2]
[356651680,1742916646185,-500.0,0.00012487,2]
[356651681,1742916646194,-500.0,0.00012487,2]
[356651682,1742916646203,-500.0,0.00012487,2]
[356651683,1742916646212,-500.0,0.00012487,2]
[356651684,1742916646221,-151.0,0.00012487,2]
[356651686,1742916646231,-151.0,0.00012487,2]
[356651688,1742916646240,-151.0,0.00012487,2]
[356651690,1742916646250,-151.0,0.00012487,2]
[356651692,1742916646259,-151.0,0.00012487,2]
[356651694,1742916646268,-151.0,0.00012487,2]
[356651696,1742916646278,-151.0,0.00012487,2]
[356651698,1742916646287,-197.634372,0.00012487,2]
[356651700,1742916646297,-500.0,0.00012487,2]
[356651702,1742916646306,-500.0,0.00012487,2]
[356651704,1742916646316,-1038.06,0.00012487,2]
[356651706,1742916646325,-500.0,0.00012487,2]
[356651708,1742916646335,-8192.75,0.00012487,2]
[356651710,1742916646344,-511.86119358,0.00012487,2]
[356651712,1742916646353,-638.53,0.00012487,2]
[356651714,1742916646362,-3634.79,0.00012487,2]
[356651716,1742916646372,-500.0,0.00012487,2]
[356651718,1742916646381,-500.0,0.00012487,2]
[356651720,1742916646391,-127625.25,0.00012487,2]
[356651722,1742916646400,-500.0,0.00012487,2]
[356651724,1742916646413,-500.0,0.00012487,2]
[356651726,1742916646425,-3779.89,0.00012487,2]
[356651728,1742916646442,-500.0,0.00012487,2]
[356651730,1742916646452,-497.23148292,0.00012487,2]
[356651732,1742916646465,-1582.47,0.00012487,2]
[356651734,1742916646474,-500.0,0.00012488,2]
[356651736,1742916646484,-500.0,0.00012488,2]
[356651738,1742916646493,-500.0,0.00012488,2]
[356651740,1742916646507,-1000.0,0.00012488,2]
[356651742,1742916646516,-303.65936572,0.00012488,2]
[356651744,1742916646526,-500.0,0.00012488,2]
[356651746,1742916646535,-489.70507054,0.00012488,2]
[356651748,1742916646545,-500.0,0.00012488,2]
[356651750,1742916646555,-500.0,0.00012488,2]
[356651752,1742916646565,-501.48753308,0.00012488,2]
[356651754,1742916646574,-198.0724879,0.00012488,2]
[356651756,1742916646584,-500.0,0.00012488,2]
[356651758,1742916646593,-500.0,0.00012488,2]
[356651760,1742916646606,-500.0,0.00012488,2]
[356651762,1742916646615,-500.0,0.00012488,2]
[356651764,1742916646624,-442.71468875,0.00012488,2]
[356651766,1742916646634,-500.0,0.00012488,2]
[356651768,1742916646643,-500.0,0.00012488,2]
[356651770,1742916646652,-500.0,0.00012488,2]
[356651772,1742916646661,-500.0,0.00012488,2]
[356651774,1742916646670,-500.0,0.00012488,2]
[356651776,1742916646679,-500.0,0.00012488,2]
[356651778,1742916646689,-500.0,0.00012488,2]
[356651780,1742916646697,-500.0,0.00012488,2]
[356651782,1742916646707,-500.0,0.00012488,2]
[356651784,1742916646716,-500.0,0.00012488,2]
[356651786,1742916646725,-500.0,0.00012488,2]
[356651788,1742916646733,-500.0,0.00012488,2]
[356651790,1742916646742,-500.0,0.00012488,2]
[356651792,1742916646751,-500.0,0.00012488,2]
[356651794,1742916646761,-500.0,0.00012488,2]
[356651796,1742916646770,-500.0,0.00012488,2]
[356651798,1742916646779,-500.0,0.00012488,2]
[356651800,1742916646788,-500.0,0.00012488,2]
[356651802,1742916646797,-500.0,0.00012488,2]
[356651804,1742916646807,-500.0,0.00012488,2]
[356651806,1742916646819,-500.0,0.00012488,2]
[356651808,1742916646827,-500.0,0.00012488,2]
[356651810,1742916646837,-506.26547208,0.00012488,2]
[356651812,1742916646846,-500.0,0.00012488,2]
[356651814,1742916646856,-503.51954392,0.00012488,2]
[356651816,1742916646865,-500.0,0.00012488,2]
[356651818,1742916646874,-350.97432741,0.00012488,2]
[356651820,1742916646883,-500.0,0.00012488,2]
[356651822,1742916646892,-500.0,0.00012488,2]
[356651824,1742916646902,-500.0,0.00012488,2]
[356651825,1742916646912,-500.0,0.00012488,2]
[356651827,1742916646921,-500.0,0.00012488,2]
[356651829,1742916646931,-500.0,0.00012488,2]
[356651832,1742916646940,-500.0,0.00012488,2]
[356651834,1742916646949,-500.0,0.00012488,2]
[356651836,1742916646959,-326.2651936,0.00012488,2]
[356651838,1742916646968,-500.0,0.00012488,2]
[356651840,1742916646978,-500.0,0.00012488,2]
[356651842,1742916646988,-500.0,0.00012488,2]
[356651843,1742916646998,-500.0,0.00012488,2]
[356651845,1742916647007,-500.0,0.00012488,2]
[356651847,1742916647016,-500.0,0.00012488,2]
[356651850,1742916647026,-500.0,0.00012488,2]
[356651852,1742916647035,-500.0,0.00012488,2]
[356651854,1742916647045,-500.0,0.00012488,2]
[356651856,1742916647054,-507.89014539,0.00012488,2]
[356651857,1742916647063,-500.0,0.00012488,2]
[356651859,1742916647073,-666.07,0.00012488,2]
[356651861,1742916647082,-502.82652165,0.00012488,2]
[356651864,1742916647092,-500.0,0.00012488,2]
[356651866,1742916647102,-500.0,0.00012488,2]
[356651868,1742916647113,-500.0,0.00012488,2]
[356651869,1742916647122,-500.0,0.00012488,2]
[356651871,1742916647132,-500.0,0.00012488,2]
[356651873,1742916647142,-500.0,0.00012488,2]
[356651875,1742916647151,-500.0,0.00012488,2]
[356651878,1742916647162,-500.0,0.00012488,2]
[356651879,1742916647173,-500.0,0.00012488,2]
[356651882,1742916647182,-500.0,0.00012488,2]
[356651884,1742916647192,-523.82633011,0.00012488,2]
[356651886,1742916647201,-500.0,0.00012488,2]
[356651888,1742916647210,-526.48912755,0.00012488,2]
[356651890,1742916647219,-500.0,0.00012488,2]
[356651892,1742916647228,-500.0,0.00012488,2]
[356651893,1742916647237,-500.0,0.00012488,2]
[356651895,1742916647247,-500.0,0.00012488,2]
[356651897,1742916647258,-500.0,0.00012488,2]
[356651900,1742916647267,-621.03112769,0.00012488,2]
[356651901,1742916647276,-500.0,0.00012488,2]
[356651903,1742916647287,-522.67183583,0.00012488,2]
[356651905,1742916647296,-500.0,0.00012488,2]
[356651907,1742916647306,-500.0,0.00012488,2]
[356651909,1742916647315,-515.81847384,0.00012488,2]
[356651911,1742916647324,-500.0,0.00012488,2]
[356651913,1742916647334,-500.0,0.00012488,2]
[356651915,1742916647343,-500.0,0.00012488,2]
[356651917,1742916647352,-500.0,0.00012488,2]
[356651919,1742916647362,-500.0,0.00012488,2]
[356651921,1742916647371,-500.0,0.00012488,2]
[356651923,1742916647381,-543.59845542,0.00012488,2]
[356651925,1742916647390,-500.0,0.00012488,2]
[356651927,1742916647399,-500.0,0.00012488,2]
[356651929,1742916647409,-507.3487937,0.00012488,2]
[356651931,1742916647418,-500.0,0.00012488,2]
[356651933,1742916647427,-500.0,0.00012488,2]
[356651935,1742916647437,-536.96491864,0.00012488,2]
[356651937,1742916647447,-500.0,0.00012488,2]
[356651939,1742916647456,-519.12044957,0.00012488,2]
[356651941,1742916647466,-500.0,0.00012488,2]
[356651944,1742916647476,-500.0,0.00012488,2]
[356651946,1742916647485,-477.9304197,0.00012488,2]
[356651948,1742916647495,-500.0,0.00012488,2]
[356651949,1742916647506,-500.0,0.00012488,2]
[356651951,1742916647515,-500.0,0.00012488,2]
[356651952,1742916647525,-500.0,0.00012488,2]
[356651953,1742916647535,-507.62792549,0.00012488,2]
[356651954,1742916647544,-500.0,0.00012488,2]
[356651955,1742916647554,-502.86231345,0.00012488,2]
[356651956,1742916647564,-500.0,0.00012488,2]
[356651957,1742916647574,-500.0,0.00012488,2]
[356651958,1742916647584,-151.0,0.00012488,2]
[356651959,1742916647594,-500.0,0.00012488,2]
[356651960,1742916647603,-500.0,0.00012488,2]
[356651961,1742916647613,-526.09337129,0.00012488,2]
[356651962,1742916647623,-511.64417133,0.00012488,2]
[356651963,1742916647632,-500.0,0.00012488,2]
[356651964,1742916647643,-500.0,0.00012488,2]
[356651965,1742916647652,-500.0,0.00012488,2]
[356651966,1742916647661,-500.0,0.00012488,2]
[356651967,1742916647671,-536.05305758,0.00012488,2]
[356651968,1742916647680,-500.0,0.00012488,2]
[356651969,1742916647690,-500.0,0.00012488,2]
[356651970,1742916647699,-500.0,0.00012488,2]
[356651971,1742916647709,-500.0,0.00012488,2]
[356651972,1742916647718,-500.0,0.00012488,2]
[356651973,1742916647728,-500.0,0.00012488,2]
[356651974,1742916647838,-500.0,0.00012488,2]
[356651975,1742916647848,-500.0,0.00012488,2]
[356651976,1742916647859,-500.0,0.00012488,2]
[356651977,1742916647868,-500.0,0.00012488,2]
[356651978,1742916647878,-500.0,0.00012488,2]
[356651979,1742916647888,-500.0,0.00012488,2]
[356651980,1742916647898,-500.0,0.00012488,2]
[356651981,1742916647908,-500.0,0.00012488,2]
[356651982,1742916647917,-500.0,0.00012488,2]
[356651983,1742916647926,-500.0,0.00012488,2]
[356651984,1742916647935,-500.0,0.00012488,2]
[356651985,1742916647944,-522.43980348,0.00012488,2]
[356651986,1742916647953,-500.0,0.00012488,2]
[356651987,1742916647963,-503.06050365,0.00012488,2]
[356651988,1742916647973,-500.0,0.00012488,2]
[356651989,1742916647984,-500.0,0.00012488,2]
[356651990,1742916647995,-500.0,0.00012488,2]
[356651991,1742916648005,-505.05045124,0.00012488,2]
[356651992,1742916648014,-500.0,0.00012488,2]
[356651993,1742916648024,-500.0,0.00012488,2]
[356651994,1742916648034,-500.0,0.00012488,2]
[356651995,1742916648043,-500.0,0.00012488,2]
[356651996,1742916648053,-500.0,0.00012488,2]
[356651997,1742916648062,-500.0,0.00012488,2]
[356651998,1742916648071,-503.40437293,0.00012488,2]
[356651999,1742916648080,-500.0,0.00012488,2]
[356652000,1742916648090,-500.0,0.00012488,2]
[356652001,1742916648099,-506.93014192,0.00012488,2]
[356652002,1742916648109,-500.0,0.00012488,2]
[356652003,1742916648119,-500.0,0.00012488,2]
[356652004,1742916648128,-500.0,0.00012488,2]
[356652005,1742916648137,-500.0,0.00012488,2]
[356652006,1742916648148,-500.0,0.00012488,2]
[356652007,1742916648157,-500.0,0.00012488,2]
[356652008,1742916648167,-500.0,0.00012488,2]
[356652009,1742916648177,-506.36894058,0.00012488,2]
[356652010,1742916648187,-500.0,0.00012488,2]
[356652011,1742916648197,-945.05,0.00012488,2]
[356652012,1742916648207,-545.88666981,0.00012488,2]
[356652013,1742916648216,-500.0,0.00012488,2]
[356652014,1742916648225,-305.7134731,0.00012488,2]
[356652015,1742916648235,-701.86,0.00012488,2]
[356652016,1742916648244,-500.0,0.00012488,2]
[356652017,1742916648254,-500.0,0.00012488,2]
[356652018,1742916648265,-500.0,0.00012488,2]
[356652019,1742916648274,-500.0,0.00012488,2]
[356652020,1742916648284,-519.499394,0.00012488,2]
[356652021,1742916648294,-519.499394,0.00012488,2]
[356652022,1742916648304,-519.499394,0.00012488,2]
[356652023,1742916648313,-519.499394,0.00012488,2]
[356652024,1742916648324,-519.499394,0.00012488,2]
[356652025,1742916648334,-500.0,0.00012488,2]
[356652026,1742916648344,-519.499394,0.00012488,2]
[356652027,1742916648354,-519.499394,0.00012488,2]
[356652028,1742916648365,-519.499394,0.00012488,2]
[356652029,1742916648375,-519.499394,0.00012488,2]
[356652030,1742916648386,-519.499402,0.00012488,2]
[356652031,1742916648396,-500.0,0.00012488,2]
[356652032,1742916648406,-500.0000006,0.00012488,2]
[356652033,1742916648417,-500.0,0.00012488,2]
[356652034,1742916648427,-500.0,0.00012488,2]
[356652035,1742916648437,-500.0,0.00012488,2]
[356652036,1742916648447,-500.0,0.00012488,2]
[356652037,1742916648458,-500.0,0.00012488,2]
[356652038,1742916648468,-500.0,0.00012488,2]
[356652039,1742916648478,-500.0,0.00012488,2]
[356652040,1742916648488,-500.0,0.00012488,2]
[356652041,1742916648499,-500.0,0.00012488,2]
[356652042,1742916648516,-500.0,0.00012488,2]
[356652043,1742916648525,-500.0,0.00012488,2]
[356652044,1742916648535,-500.0,0.00012488,2]
[356652045,1742916648546,-500.0,0.00012488,2]
[356652046,1742916648556,-602.53,0.00012488,2]
[356652047,1742916648565,-277.00321759,0.00012488,2]
[356652048,1742916648574,-1442.36,0.00012488,2]
[356652049,1742916648584,-500.0,0.00012488,2]
[356652050,1742916648594,-500.0,0.00012488,2]
[356652051,1742916648604,-348.21616103,0.00012488,2]
[356652052,1742916648614,-500.0,0.00012488,2]
[356652053,1742916648624,-500.0,0.00012488,2]
[356652054,1742916648634,-507.48905518,0.00012488,2]
[356652055,1742916648645,-500.0,0.00012488,2]
[356652056,1742916648654,-500.0,0.00012488,2]
[356652057,1742916648664,-500.0,0.00012488,2]
[356652058,1742916648674,-500.0,0.00012488,2]
[356652059,1742916648683,-500.0,0.00012488,2]
[356652060,1742916648695,-2807.66,0.00012488,2]
[356652061,1742916648705,-500.0,0.00012488,2]
[356652062,1742916648715,-504.67566469,0.00012488,2]
[356652063,1742916648724,-507.08449037,0.00012488,2]
[356652064,1742916648734,-500.0,0.00012488,2]
[356652065,1742916648744,-500.0,0.00012488,2]
[356652066,1742916648757,-500.0,0.00012488,2]
[356652067,1742916648767,-500.0,0.00012488,2]
[356652068,1742916648777,-6826.57,0.00012488,2]
[356652069,1742916648787,-500.0,0.00012488,2]
[356652070,1742916648798,-1104.57,0.00012488,2]
[356652071,1742916648808,-500.0,0.00012488,2]
[356652072,1742916648822,-520.9759435,0.00012488,2]
[356652073,1742916648833,-500.0,0.00012488,2]
[356652074,1742916648843,-500.0,0.00012488,2]
[356652075,1742916648855,-500.0,0.00012488,2]
[356652076,1742916648865,-500.0,0.00012488,2]
[356652077,1742916648875,-500.0,0.00012488,2]
[356652078,1742916648886,-500.0,0.00012488,2]
[356652079,1742916648897,-500.18098539,0.00012488,2]
[356652080,1742916648907,-521.10419741,0.00012488,2]
[356652081,1742916648917,-500.0,0.00012488,2]
[356652082,1742916648926,-549.95,0.00012488,2]
[356652083,1742916648936,-500.0,0.00012488,2]
[356652084,1742916648945,-505.83691582,0.00012488,2]
[356652085,1742916648955,-518.71984469,0.00012488,2]
[356652086,1742916648965,-500.0,0.00012488,2]
[356652087,1742916648975,-500.0,0.00012488,2]
[356652088,1742916648986,-500.0,0.00012488,2]
[356652089,1742916648997,-500.0,0.00012488,2]
[356652090,1742916649010,-304.412424,0.00012488,2]
[356652091,1742916649021,-517.79315932,0.00012488,2]
[356652092,1742916649032,-304.412414,0.00012488,2]
[356652093,1742916649060,-500.0,0.00012488,2]
[356652094,1742916649100,-506.73135442,0.00012488,2]
[356652095,1742916649121,-500.0,0.00012488,2]
[356652096,1742916649143,-500.0,0.00012488,2]
[356652097,1742916649169,-500.0,0.00012488,2]
[356652098,1742916649420,-500.0,0.00012488,2]
[356652099,1742916649432,-500.0,0.00012488,2]
[356652100,1742916649441,-500.0,0.00012488,2]
[356652101,1742916649451,-500.0,0.00012488,2]
[356652102,1742916649461,-500.0,0.00012488,2]
[356652103,1742916649471,-500.0,0.00012488,2]
[356652104,1742916649481,-500.0,0.00012488,2]
[356652105,1742916649492,-500.0,0.00012488,2]
[356652106,1742916649502,-500.0,0.00012488,2]
[356652107,1742916649512,-500.0,0.00012488,2]
[356652108,1742916649522,-500.0,0.00012488,2]
[356652109,1742916649531,-500.0,0.00012488,2]
[356652110,1742916649541,-500.0,0.00012488,2]
[356652111,1742916649550,-500.0,0.00012488,2]
[356652112,1742916649560,-500.0,0.00012488,2]
[356652113,1742916649569,-500.0,0.00012488,2]
[356652114,1742916649580,-500.0,0.00012488,2]
[356652115,1742916649589,-500.0,0.00012488,2]
[356652116,1742916649599,-510.69509811,0.00012488,2]
[356652117,1742916649608,-500.0,0.00012488,2]
[356652118,1742916649618,-500.0,0.00012488,2]
[356652119,1742916649627,-504.88939997,0.00012488,2]
[356652120,1742916649637,-500.0,0.00012488,2]
[356652121,1742916649646,-500.0,0.00012488,2]
[356652122,1742916649656,-500.0,0.00012488,2]
[356652123,1742916649666,-500.0,0.00012488,2]
[356652124,1742916649675,-500.0,0.00012488,2]
[356652125,1742916649685,-512.32975601,0.00012488,2]
[356652126,1742916649694,-524.03607142,0.00012488,2]
[356652127,1742916649705,-500.0,0.00012489,2]
[356652128,1742916649714,-505.91679211,0.00012489,2]
[356652129,1742916649724,-585.91193644,0.00012489,2]
[356652130,1742916649734,-500.0,0.00012489,2]
[356652131,1742916649743,-500.0,0.00012489,2]
[356652132,1742916649753,-500.0,0.00012489,2]
[356652133,1742916649763,-500.0,0.00012489,2]
[356652134,1742916649772,-500.0,0.00012489,2]
[356652135,1742916649782,-512.34538433,0.00012489,2]
[356652136,1742916649792,-532.50289309,0.00012489,2]
[356652137,1742916649802,-500.0,0.00012489,2]
[356652138,1742916649815,-500.0,0.00012489,2]
[356652139,1742916649824,-500.0,0.00012489,2]
[356652140,1742916649834,-537.88259538,0.00012489,2]
[356652141,1742916649843,-715.87,0.00012489,2]
[356652142,1742916649852,-500.0,0.00012489,2]
[356652143,1742916649862,-500.0,0.00012489,2]
[356652144,1742916649872,-500.0,0.00012489,2]
[356652145,1742916649881,-500.0,0.00012489,2]
[356652146,1742916649892,-500.0,0.00012489,2]
[356652147,1742916649902,-500.0,0.00012489,2]
[356652148,1742916649912,-500.0,0.00012489,2]
[356652149,1742916649921,-641.64,0.00012489,2]
[356652150,1742916649930,-500.0,0.00012489,2]
[356652151,1742916649940,-500.0,0.00012489,2]
[356652152,1742916649950,-500.0,0.00012489,2]
[356652153,1742916649959,-500.0,0.00012489,2]
[356652154,1742916649969,-500.0,0.00012489,2]
[356652155,1742916649978,-500.0,0.00012489,2]
[356652156,1742916649988,-500.0,0.00012489,2]
[356652157,1742916649998,-500.0,0.00012489,2]
[356652158,1742916650007,-500.0,0.00012489,2]
[356652159,1742916650016,-500.0,0.00012489,2]
[356652160,1742916650026,-500.0,0.00012489,2]
[356652161,1742916650036,-500.0,0.00012489,2]
[356652162,1742916650045,-500.0,0.0001249,2]
[356652163,1742916650054,-1511.93,0.0001249,2]
[356652164,1742916650064,-500.0,0.0001249,2]
[356652165,1742916650073,-542.83,0.0001249,2]
[356652166,1742916650083,-1585.48,0.0001249,2]
[356652167,1742916650093,-881.79,0.0001249,2]
[356652168,1742916650103,-1642.0,0.0001249,2]
[356652169,1742916650112,-500.0,0.0001249,2]
[356652170,1742916650122,-705.16,0.0001249,2]
[356652171,1742916650132,-1344.94,0.0001249,2]
[356652172,1742916650142,-636.98,0.0001249,2]
[356652173,1742916650151,-500.0,0.0001249,2]
[356652174,1742916650161,-500.0,0.0001249,2]
[356652175,1742916650264,-500.0,0.0001249,2]
[356652176,1742916650274,-500.0,0.0001249,2]
[356652177,1742916650284,-852.38,0.0001249,2]
[356652178,1742916650293,-1234.11,0.0001249,2]
[356652179,1742916650303,-500.0,0.0001249,2]
[356652180,1742916650313,-915.39,0.0001249,2]
[356652181,1742916650323,-500.0,0.0001249,2]
[356652182,1742916650333,-2976.71,0.0001249,2]
[356652183,1742916650342,-500.0,0.0001249,2]
[356652184,1742916650352,-500.0,0.0001249,2]
[356652185,1742916650362,-500.0,0.0001249,2]
[356652186,1742916650371,-500.0,0.0001249,2]
[356652187,1742916650381,-500.0,0.0001249,2]
[356652188,1742916650390,-553.13429299,0.0001249,2]
[356652189,1742916650400,-500.0,0.0001249,2]
[356652190,1742916650409,-500.0,0.0001249,2]
[356652191,1742916650419,-425.52707057,0.0001249,2]
[356652192,1742916650428,-500.0,0.0001249,2]
[356652193,1742916650437,-529.38194851,0.0001249,2]
[356652194,1742916650447,-250.0,0.000125,2]
[356652195,1742916650456,-250.0,0.000125,2]
[356652196,1742916650466,-250.0,0.000125,2]
[356652197,1742916650475,-376.8,0.000125,2]
[356652198,1742916650485,-622.2,0.00012538,2]
[356652199,1742916650494,-439.0307576,0.00012573,2]
[356652200,1742916650505,-151.0,0.00012589,2]
[356652201,1742916650514,-500.0,0.00012589,2]
[356652202,1742916650524,-500.0,0.00012589,2]
[356652203,1742916650534,-500.0,0.00012589,2]
[356652204,1742916650544,-500.0,0.00012589,2]
[356652205,1742916650554,-500.0,0.00012589,2]
[356652206,1742916650563,-500.0,0.00012589,2]
[356652207,1742916650572,-500.0,0.00012589,2]
[356652208,1742916650582,-500.0,0.00012589,2]
[356652209,1742916650592,-500.0,0.00012589,2]
[356652210,1742916650601,-500.0,0.00012589,2]
[356652211,1742916650611,-500.0,0.00012589,2]
[356652212,1742916650620,-500.0,0.00012589,2]
[356652213,1742916650630,-886.57,0.00012589,2]
[356652214,1742916650639,-500.0,0.00012589,2]
[356652215,1742916650649,-500.0,0.00012589,2]
[356652216,1742916650659,-336.13771365,0.00012589,2]
[356652217,1742916650668,-505.6672734,0.00012589,2]
[356652218,1742916650678,-500.0,0.00012589,2]
[356652219,1742916650687,-500.0,0.00012589,2]
[356652220,1742916650696,-500.0,0.00012589,2]
[356652221,1742916650706,-500.0,0.00012589,2]
[356652222,1742916650715,-581.05,0.00012589,2]
[356652223,1742916650724,-517.84901565,0.00012589,2]
[356652224,1742916650733,-500.0,0.00012589,2]
[356652225,1742916650743,-500.0,0.00012589,2]
[356652226,1742916650752,-500.0,0.00012589,2]
[356652227,1742916650762,-500.0,0.00012591,2]
[356652228,1742916650771,-175.1640761,0.00012591,3]
[356652229,1742916650780,-645.2214,0.00012593,2]
[356652230,1742916650789,-669.0945918,0.00012648,2]
[356652231,1742916650799,-500.0,0.00012661,2]
[356652232,1742916650810,-13278.19,0.00012661,2]
[356652233,1742916650820,-4176.76,0.00012661,2]
[356652234,1742916650829,-1226.03,0.00012661,2]
[356652235,1742916650839,-1295.28,0.00012661,2]
[356652236,1742916650848,-11481.68,0.00012661,2]
[356652237,1742916650858,-500.0,0.00012661,2]
[356652238,1742916650867,-500.0,0.00012661,2]
[356652239,1742916650877,-500.0,0.00012661,2]
[356652240,1742916650888,-583.43,0.00012661,2]
[356652241,1742916650898,-500.0,0.00012661,2]
[356652242,1742916650907,-1512.05,0.00012661,2]
[356652243,1742916650916,-543.29,0.00012661,2]
[356652244,1742916650926,-1976.38,0.00012661,2]
[356652245,1742916650935,-500.0,0.00012661,2]
[356652246,1742916650944,-500.0,0.00012661,2]
[356652247,1742916650954,-500.0,0.00012661,2]